Cogmind - Beta 11.1 @@@ ROGUE MODE // 2022.09.07 @ 15:49:10 Player: lumberblack Result: Destroyed self with Rocket Launcher Performance ------------- Evolutions (0) 0 Regions Visited (2) 400 Robots Destroyed (13) 65 Value Destroyed (161) 161 Prototype IDs (5) 100 Alien Tech Used (0) 0 Bonus (0) 0 TOTAL SCORE: 726 Bonus ------- None Cogmind --------- Core Integrity 0/250 Matter 224/300 Energy 100/100 System Corruption 0% Temperature Cool (0) Movement Core (100) Ox1 Location -10/Mines Parts ------- > --- POWER (1) -------- (None) > --- PROPULSION (2) --- (None) > --- UTILITY (2) ------ Machine Analyzer Transport Network Coupler > --- WEAPON (2) ------- Rocket Launcher > --- INVENTORY (5) ---- Large Storage Unit Large Matter Pod (150) Experimental Sensor Array Light Assault Rifle Peak State ------------ > --- POWER ------------ (None) > --- PROPULSION ------- Light Treads Light Treads > --- UTILITY ---------- Machine Analyzer Transport Network Coupler > --- WEAPON ----------- Light Assault Rifle Light Assault Rifle > --- INVENTORY -------- Large Storage Unit Large Matter Pod Experimental Sensor Array Light Assault Rifle [Rating: 9] Favorites ----------- Power Light Ion Engine Engine Light Ion Engine Propulsion Light Treads Treads Light Treads Leg Aluminum Leg Utility Transport Network Coupler Storage Small Storage Unit Processor Transport Network Coupler Weapon Light Assault Rifle Energy Gun Medium Laser Ballistic Gun Light Assault Rifle Launcher Rocket Launcher Build | -11 -10 -10 ------- Run | Scr Mat Min Slots Evolved . | . . . Power . | . . . Propulsion . | . . . Utility . | . . . Weapon . | . . . Parts Attached 26 | 2 17 7 Power . | . . . Engine . | . . . Core . | . . . Reactor . | . . . Propulsion 5 | 2 3 . Treads 5 | 2 3 . Leg . | . . . Wheel . | . . . Hover . | . . . Flight . | . . . Utility 2 | . 2 . Device . | . . . Storage . | . . . Processor 2 | . 2 . Hackware . | . . . Protection . | . . . Artifact . | . . . Weapon 19 | . 12 7 Energy Gun 1 | . 1 . Energy Cannon . | . . . Ballistic Gun 15 | . 11 4 Ballistic Cannon . | . . . Launcher 3 | . . 3 Special Weapon . | . . . Impact Weapon . | . . . Slashing Weapon . | . . . Piercing Weapon . | . . . Special Melee Weapon . | . . . Unidentified Prototypes . | . . . Parts Lost 5 | . . 5 Power . | . . . Propulsion 2 | . . 2 Utility . | . . . Weapon 3 | . . 3 Highest Loss Streak 4 | . . 4 To Critical Strikes 1 | . . 1 Average Slot Usage (%) 58 | . 58 61 Treads 25 | . 28 15 Processor 7 | . 1 28 Energy Gun 5 | . 7 . Ballistic Gun 18 | . 20 13 Launcher 1 | . . 4 Naked Turns . | . . . Heaviest Build 5 | 3 4 5 Greatest Support 40 | 40 40 40 Greatest Overweight (x) 1 | . . 1 Average Overweight (x) . | . . . Largest Inventory Capacity 8 | 8 5 5 Average Capacity 5 | 5 5 5 Most Carried 6 | 6 5 5 Average Carried 3 | 1 3 4 Final Capacity 5 | 5 5 5 Final Carried 5 | 1 5 4 Class Distribution -------------------- 100% | Mutant Dominant Class ---------------- Mutant | -10/Materials Mutant | -10/Mines Resources | -11 -10 -10 ----------- Run | Scr Mat Min Matter Collected 709 | 212 379 118 Remotely . | . . . Salvage Created 373 | . 289 84 Parts 29 | . 24 5 Haulers Intercepted 2 | . 2 . Recyclers Shooed 3 | . . 3 Parts Field Recycled . | . . . Retrieved Matter . | . . . Parts Self-Destructed . | . . . Prevented . | . . . Kills | -11 -10 -10 ------- Run | Scr Mat Min Combat Hostiles Destroyed 14 | . 5 9 Melee 1 | . . 1 Guns 8 | . 5 3 AOE 5 | . . 5 Classes Destroyed 9 | . 5 4 Worker 1 | . . 1 Tunneler 1 | . . 1 Hauler 2 | . 2 . Recycler 1 | . . 1 Mechanic 1 | . 1 . Watcher 2 | . 2 . Swarmer 3 | . 3 . Grunt 2 | . 2 . Assembled 9 | . . 9 Best Kill Streak 6 | . 2 6 Combat Bots Only 3 | . 2 3 Max Kills in Single Turn 3 | . 1 3 Gunslinging . | . . . Exploded 1 | . . 1 Melee 1 | . . 1 Uniques/NPCs Destroyed . | . . . Combat | -11 -10 -10 -------- Run | Scr Mat Min Damage Taken 860 | . 99 761 Core 281 | . 42 239 Absorbed by Shields . | . . . Core Remaining (%) 100 | 100 . . Volleys Fired 46 | . 28 18 Largest 2 | . 2 2 Hottest 70 | . 70 40 Shots Fired 80 | . 56 24 Gun 70 | . 56 14 Cannon . | . . . Launcher 10 | . . 10 Special . | . . . Kinetic 55 | . 41 14 Thermal 15 | . 15 . Explosive 10 | . . 10 Electromagnetic . | . . . Robot Hit Streak 9 | . 9 8 Robot Miss Streak 4 | . 4 3 Penetration Max . | . . . Secondary Targets . | . . . Shots Hit Robots 49 | . 38 11 Core Hits 36 | . 17 19 Critical Kills . | . . . Critical Parts Destroyed . | . . . Critical Strikes . | . . . Melee Attacks . | . . . Impact . | . . . Slashing . | . . . Piercing . | . . . Sneak Attacks . | . . . Combat Hostiles . | . . . Follow-up Attacks . | . . . Damage Inflicted 1043 | . 373 670 Guns 463 | . 373 90 Cannons . | . . . Explosions 566 | . . 566 Melee . | . . . Ramming 14 | . . 14 Kinetic 342 | . 252 90 Thermal 121 | . 121 . Explosive 566 | . . 566 Electromagnetic . | . . . Impact . | . . . Slashing . | . . . Piercing . | . . . Highest Corruption . | . . . Average Corruption . | . . . Corruption Purged . | . . . Corruption Blocked . | . . . Overload Shots . | . . . Overflow Damage 8 | . . 8 Projectiles . | . . . Explosions 8 | . . 8 Melee . | . . . Knockbacks . | . . . Impact . | . . . Kinetic . | . . . Secondary . | . . . Self-Inflicted Damage 39 | . . 39 Shots 1 | . . 1 Rammed 10 | . . 10 Targets Rammed 11 | . . 11 Kicked . | . . . Crushed 1 | . . 1 Highest Temperature 20 | . 20 . Average Temperature 11 | . 11 . Received Heat Transfer 110 | . 30 80 Siege Activations . | . . . Robots Corrupted . | . . . Combat Hostiles . | . . . Parts Fried . | . . . Impact Corruptions . | . . . Robots Melted . | . . . Combat Hostiles . | . . . Parts Melted . | . . . Heat Transferred 333 | . 333 . Parts Sabotaged . | . . . Parts Stolen . | . . . Parts Stripped . | . . . Power Chain Reactions . | . . . Missiles Intercepted . | . . . Alert | -11 -10 -10 ------- Run | Scr Mat Min Peak Influence 186 | . 186 162 Initial 17 | . . 17 Average 50 | . 58 31 Maximum Alert Level . | . . . Low Security (%) 100 | 100 100 100 Level 1 . | . . . Level 2 . | . . . Level 3 . | . . . Level 4 . | . . . Level 5 . | . . . High Security . | . . . Max Security . | . . . Squads Dispatched 2 | . 2 . Investigation 2 | . 2 . Extermination . | . . . Reinforcement . | . . . Assault . | . . . Garrison . | . . . Intercept . | . . . Searches Triggered . | . . . Construction Impeded . | . . . Haulers Reinforced . | . . . Active Scanning Responses . | . . . Cargo Convoy Interrupts . | . . . Stealth | -11 -10 -10 --------- Run | Scr Mat Min Distress Signals . | . . . Communications Jammed . | . . . Distress Signals . | . . . Times Spotted 43 | . 14 29 Peak Tracking Total 12 | . 4 12 Tactical Retreats 3 | . 1 2 Traps | -11 -10 -10 ------- Run | Scr Mat Min Traps Triggered 4 | . 4 . Indirectly . | . . . Trap Hack Attempts . | . . . Triggered . | . . . Disarmed . | . . . Reprogrammed . | . . . Reused . | . . . Traps Extracted . | . . . Installed . | . . . Triggered . | . . . Machines | -11 -10 -10 ---------- Run | Scr Mat Min Machines Disabled . | . . . Max in Single Turn . | . . . Machines Sabotaged . | . . . Garrisons Compromised . | . . . Overloaded Fab Kills . | . . . Hacking | -11 -10 -10 --------- Run | Scr Mat Min Machines Accessed 9 | . 9 . Terminals 7 | . 7 . Fabricators . | . . . Repair Stations 1 | . 1 . Recycling Units 1 | . 1 . Scanalyzers . | . . . Garrison Access . | . . . Total Hacks 37 | . 37 . Successful 24 | . 24 . Failed 13 | . 13 . Catastrophic 1 | . 1 . Database Lockouts . | . . . Manual 23 | . 23 . Terminals 33 | . 33 . Fabricators . | . . . Repair Stations 2 | . 2 . Recycling Units 2 | . 2 . Scanalyzers . | . . . Garrison Access . | . . . Terminal Hacks 15 | . 15 . Part Schematic 2 | . 2 . Robot Analysis 3 | . 3 . Prototype ID Bank 4 | . 4 . Branch Access Points 1 | . 1 . Unreport Threat 2 | . 2 . Locate Traps 2 | . 2 . Zone Layout 1 | . 1 . Fabricator Hacks . | . . . Repair Station Hacks 1 | . 1 . Scan Component 1 | . 1 . Recycling Unit Hacks . | . . . Scanalyzer . | . . . Garrison Access Hacks . | . . . Unauthorized Hacks 8 | . 8 . Terminals 6 | . 6 . Track 3 | . 3 . Botnet 1 | . 1 . Disrupt 1 | . 1 . Operators 1 | . 1 . Fabricators . | . . . Repair Stations . | . . . Recycling Units 2 | . 2 . Recyclers 1 | . 1 . Tunnel 1 | . 1 . Scanalyzers . | . . . Garrison Access . | . . . Data Cores Recovered . | . . . Used . | . . . Hacking Detections 8 | . 8 . Full Trace Events 2 | . 2 . Feedback Events . | . . . Feedback Blocked . | . . . Robot Schematics Acquired . | . . . Robots Built . | . . . Authchips . | . . . Time . | . . . Total Robot Build Rating . | . . . Part Schematics Acquired 2 | . 2 . Parts Built . | . . . Authchips . | . . . Time . | . . . Total Part Build Rating . | . . . Parts Repaired . | . . . Time . | . . . Parts Recycled . | . . . Recycled Matter . | . . . Retrieved Matter . | . . . Retrieved Components . | . . . Parts Scanalyzed . | . . . Part Schematics Acquired . | . . . Parts Damaged . | . . . Bothacking | -11 -10 -10 ------------ Run | Scr Mat Min Used RIF Installer . | . . . Robots Hacked . | . . . Non-combat . | . . . Combat . | . . . Robot Hacks Applied . | . . . Relay Couplers Released . | . . . Fabnet Peak Effective % . | . . . Robots Rewired . | . . . Allies Hacked . | . . . Hacks Repelled . | . . . Allies | -11 -10 -10 -------- Run | Scr Mat Min Total Allies . | . . . Largest Group . | . . . Highest-Rated Group . | . . . Highest-Rated Ally . | . . . Total Orders . | . . . Ally Attacks . | . . . Total Damage . | . . . Kills . | . . . Allies Corrupted . | . . . Allies Melted . | . . . Intel | -11 -10 -10 ------- Run | Scr Mat Min Robot Analysis Total 3 | . 3 . Derelict Logs Recovered . | . . . Drone Launches . | . . . Drone Recoveries . | . . . Exploration | -11 -10 -10 ------------- Run | Scr Mat Min Turns Passed 1236 | 28 915 293 Spaces Moved 1077 | 15 785 277 Core 935 | . 662 273 Treads 142 | 15 123 4 Legs . | . . . Wheels . | . . . Hover . | . . . Flight . | . . . Fastest Speed 50 | 160 50 50 Average Speed 64 | 160 67 52 Slowest Speed 160 | 160 160 160 Overloaded Moves . | . . . Propulsion Burnouts . | . . . Robots Hopped . | . . . Cave-ins Triggered . | . . . Exploration Rate (%) 48 | 2 85 58 Regions Visited 2 Branch Regions 1 Pre-discovered Areas 1 | . 1 . Known Exits Taken 1 | . 1 . Unknown Exits Taken 1 | 1 . . Scrap Searched . | . . . Spaces Dug 7 | . . 7 Terrain Destroyed 68 | . . 68 Melee . | . . . Projectile . | . . . AOE 68 | . . 68 Terrain Rammed . | . . . Walls Destroyed . | . . . Machines Disabled . | . . . Actions | -11 -10 -10 --------- Run | Scr Mat Min Total 1541 | 23 1118 400 Wait 357 | . 277 80 Move 1075 | 14 784 277 Hop . | . . . Pick Up 8 | . 5 3 Fast Attach 12 | . 10 2 Attach 5 | 2 . 3 Detach 2 | . 1 1 Swap 9 | . 7 2 Drop 16 | 7 6 3 Fire 46 | . 28 18 Melee . | . . . Ram . | . . . Kick . | . . . Crush 11 | . . 11 Escape Stasis . | . . . Rewire . | . . . Trap . | . . . Miscellaneous . | . . . Route ------- -11/Scrapyard -10/Materials (discovered 4 exits: [*Mat x3] / *Min) -10/Mines (discovered 2 exits: [*Mat x2]) History --------- Turn | Location | Event 7 | -11/Scrapyard | Discovered new exit (range 3) 29 | -11/Scrapyard | Entered Materials 308 | -10/Materials | Discovered new exit (range 3) 312 | -10/Materials | Build established: Mutant 346 | -10/Materials | Discovered new exit (range 10) 441 | -10/Materials | Identified exit to Mines 838 | -10/Materials | Discovered new exit (range 8) 944 | -10/Materials | Entered Mines 960 | -10/Mines | Met a Derelict bent on vengeance 973 | -10/Mines | Discovered new exit (range 9) 1030 | -10/Mines | Assembled infested the area 1035 | -10/Mines | Assisted by a Guerilla fighting off Assembled 1058 | -10/Mines | Discovered new exit (range 14) 1065 | -10/Mines | Received a Rocket Launcher from a helpful Derelict 1073 | -10/Mines | Found a damaged Exp. Sensor Array with a note attached 1075 | -10/Mines | Found Prototype Device 1113 | -10/Mines | Core integrity fell below 50% 1126 | -10/Mines | Core integrity fell below 20% 1144 | -10/Mines | Lost 4 parts (2n2w) 1237 | -10/Mines | Destroyed self with Rocket Launcher Last Messages --------------- 01178_ The unstable cave ceiling collapses. 01179_ as-27230 destroyed. 01181_ The unstable cave ceiling collapses. 01181_ K-01 Serf collects debris. 01182_ R-06 Scavenger collects Lgt. Assault Rifle. 01183_ K-01 Serf collects debris. 01183_ Acquired 54 matter. 01186_ K-01 Serf collects debris. 01220_ The unstable cave ceiling collapses. 01225_ R-06 Scavenger collects Welding Torch. 01225_ R-06 Scavenger collects Terrain Scanner. 01227_ T-07 Excavator destroyed. 01227_ K-01 Serf destroyed. 01227_ Destroyed Lgt. Ion Engine. 01227_ Destroyed Tractor Beam. 01227_ as-42975 destroyed. 01229_ as-59226 destroyed. 01233_ R-06 Scavenger destroyed. 01236_ The unstable cave ceiling collapses. 01237_ as-69170 destroyed. Map ----- +----------------------------------------------------+ | #?# #??##?????????????$??????????????????????# | | ##?# #???????????????? ??????????????????????# | | ##??# #??????????????? = #????????????????????## | | #???# #??????????????? %=%????????????????????# | | ##### ##??????????? ?? *=##???????##?????????# | | #???????????# ?? ##?##### ###???????# | | #????????????? ? ##?????## | | ###### #?????????????? " ###= #?????# | | ?????#%|##########??????# % * # ##????# | | ?????# %## ## ##?????## *]%=#### #????## | | ???## ! ##?? ?# ! =%!% %% #?????# | | ## ##? # % !#####! #?????# | | ## ## # !*! # #?????# | | #### *% # #??????# | | #??### ####### ?# #??????# | | #?##### ##????## % #?# ######## | | ## #### ##% #???### a| ### | | #?###### %* ##### ## !% # ########## | | ??????# ## ????????# [ | | ???????# ##?? a ????????# | | #???##### ###### ##??? ????????### | | ???## ## ####### ###?### % #??????????? | | ??## # ## #???# ==% #????????????? | | ### #???# #????????????? | | ####???# ###?????????????? | | #### ##??????#@< #???????????????????? | | ##??##########???????## ###???????????????????? | | ##????????????????????###?????????????????????? | | #????????????????????????????????????????????? | | #????????????????????????????????????????????? | | # ##????????????????????????????????????????????? | | ####?????????????????????????????????????????????? | | ?????????????????????????????????????????????????? | | ?????????????????????????????????????????????????? | | | | | | | | | | | | | | | | | | | | | | | | | | | | | | | | | +----------------------------------------------------+ Best States ------------- Heat Dissipation 25 Energy Generation 5 Energy Capacity 100 Matter Stores 300 Matter Capacity 300 Sight Range 16 Terrain Scan Density 10 Evasion (%) 50 Recoil Reduction 2 Item Schematics ----------------- Lrg. Storage Unit | -10/Materials | Hacked Hcp. Storage Unit | -10/Materials | Hacked Robot Schematics ------------------ None Fabricated ------------ Nothing Alien Tech Used ----------------- None Achievements -------------- None Challenges ------------ None Game ------ Seed MicrowarpClaymoresWell Manual? 0 Play Time 00:16:59 Cumulative 396.7 hours Start 2022.09.07 @ 15:31:24 End 2022.09.07 @ 15:49:10 Sessions 1 Manual Loads 0 Difficulty Rogue Special Mode None Game No. 404 Rogue 404 Adventurer 0 Explorer 0 Win Type - Total 8 Types 5/1/2/0/0/0/0/0/0 Lore% 57 Gallery% 78 Achievement% 65 Wizard Run 0 Options --------- ASCII 0 Keyboard 0 Movement Numpad Keybinds 0 Fullscreen 2 Font 18/TerminusBold Map View 76x50 Tactical HUD 1 Map Filters NONE Filters NONE Steam 1 RUN: 4d3e16ae-21a2-4758-a772-909b7ac4a3cb